Cogmind - Beta 10.2 @@@ ROGUE MODE // 2020.11.16 @ 11:23:56 // Halloween2020/ForbiddenLore Player: Flufflewump Result: Destroyed by Y-45 Defender with Beam Rifle Performance ------------- Evolutions (1) 500 Regions Visited (3) 600 Robots Destroyed (15) 75 Value Destroyed (369) 369 Prototype IDs (0) 0 Alien Tech Used (0) 0 Bonus (253) 253 TOTAL SCORE: 1797 Bonus ------- Follower Combat Kills 253 Cogmind --------- Core Integrity 0/400 Matter 256/300 Energy 120/265 System Corruption 0% Temperature Cool (9) Movement Flying (37) Location -9/Storage Parts ------- > --- POWER (1) -------- Improved Ion Engine > --- PROPULSION (2) --- Cesium-ion Thruster Cesium-ion Thruster > --- UTILITY (4) ------ Signal Interpreter Seismic Analyzer > --- WEAPON (2) ------- Mace > --- INVENTORY (4) ---- Seismic Analyzer Rocket Launcher Peak State ------------ > --- POWER ------------ (None) > --- PROPULSION ------- Cesium-ion Thruster Cesium-ion Thruster > --- UTILITY ---------- Large Storage Unit Improved Sensor Array Signal Interpreter Advanced Terrain Scanner > --- WEAPON ----------- Mining Claw > --- INVENTORY -------- Cesium-ion Thruster Cesium-ion Thruster Medium Storage Unit Sensor Array Seismic Analyzer Seismic Analyzer Rocket Launcher [Rating: 15] Favorites ----------- Power Ion Engine Engine Ion Engine Propulsion Aluminum Leg Leg Aluminum Leg Wheel Wheel Flight Unit Cesium-ion Thruster Utility Terrain Scanner Device Terrain Scanner Storage Large Storage Unit Processor Signal Interpreter Weapon Assault Rifle Energy Gun Particle Gun Ballistic Gun Assault Rifle Launcher Rocket Launcher Impact Weapon Mace Slashing Weapon Mining Claw Build | -11 -10 -9 -9 ------- Run | Scr Mat Mat Sto Slots Evolved 2 | . . 2 . Power . | . . . . Propulsion . | . . . . Utility 2 | . . 2 . Weapon . | . . . . Parts Attached 26 | . 15 3 8 Power 4 | . 2 . 2 Engine 4 | . 2 . 2 Core . | . . . . Reactor . | . . . . Propulsion 7 | . 4 . 3 Treads . | . . . . Leg 2 | . 2 . . Wheel 2 | . 2 . . Hover . | . . . . Flight 3 | . . . 3 Utility 8 | . 4 3 1 Device 3 | . 1 2 . Storage 2 | . 2 . . Processor 3 | . 1 1 1 Hackware . | . . . . Protection . | . . . . Artifact . | . . . . Weapon 7 | . 5 . 2 Energy Gun 1 | . 1 . . Energy Cannon . | . . . . Ballistic Gun 3 | . 3 . . Ballistic Cannon . | . . . . Launcher 1 | . 1 . . Special Weapon . | . . . . Impact Weapon 1 | . . . 1 Slashing Weapon 1 | . . . 1 Piercing Weapon . | . . . . Special Melee Weapon . | . . . . Unidentified Prototypes . | . . . . Parts Lost 9 | . 1 . 8 Power 1 | . . . 1 Propulsion 3 | . . . 3 Utility 2 | . . . 2 Weapon 3 | . 1 . 2 Highest Loss Streak 6 | . 1 . 6 Average Slot Usage (%) 94 | . 98 98 80 Engine 12 | . 14 11 9 Leg 12 | . 18 . . Wheel 11 | . 9 22 11 Flight 1 | . . . 10 Device 12 | . 10 20 16 Storage 12 | . 14 11 5 Processor 5 | . 1 11 14 Energy Gun 1 | . 2 . . Ballistic Gun 21 | . 25 22 9 Naked Turns . | . . . . Heaviest Build 27 | 11 26 27 27 Greatest Support 20 | 20 20 20 20 Greatest Overweight (x) 1 | . 1 1 1 Average Overweight (x) . | . . 1 . Largest Inventory Capacity 10 | . 10 10 10 Average Capacity 8 | . 8 10 7 Most Carried 10 | . 8 10 10 Average Carried 6 | . 6 9 6 Final Capacity 10 | 6 10 10 4 Final Carried 10 | 6 8 10 2 Class Distribution -------------------- 66% | Mutant 18% | Skirmisher 12% | Scavenger-Mutant Dominant Class ---------------- Mutant | -10/Materials Skirmisher | -9/Materials Mutant | -9/Storage Resources | -11 -10 -9 -9 ----------- Run | Scr Mat Mat Sto Matter Collected 641 | 200 285 . 156 Remotely . | . . . . Salvage Created 413 | . 413 . . Parts 31 | . 31 . . Haulers Intercepted 1 | . 1 . . Recyclers Shooed . | . . . . Parts Field Recycled . | . . . . Retrieved Matter . | . . . . Parts Self-Destructed . | . . . . Prevented . | . . . . Kills | -11 -10 -9 -9 ------- Run | Scr Mat Mat Sto Combat Hostiles Destroyed 11 | . 11 . . Guns 9 | . 9 . . AOE 2 | . 2 . . Classes Destroyed 5 | . 5 . . Tunneler 1 | . 1 . . Hauler 1 | . 1 . . Watcher 2 | . 2 . . Swarmer 3 | . 3 . . Grunt 8 | . 8 . . Best Kill Streak 4 | . 4 . . Combat Bots Only 3 | . 3 . . Max Kills in Single Turn 2 | . 2 . . Gunslinging . | . . . . Exploded 1 | . 1 . . Melee . | . . . . Uniques/NPCs Destroyed . | . . . . Combat | -11 -10 -9 -9 -------- Run | Scr Mat Mat Sto Damage Taken 1250 | . 429 43 778 Core 471 | . 67 9 395 Absorbed by Shields . | . . . . Core Remaining (%) 86 | 100 73 . . Volleys Fired 48 | . 47 . 1 Largest 2 | . 2 . 1 Hottest 85 | . 85 . 20 Shots Fired 92 | . 91 . 1 Gun 89 | . 88 . 1 Cannon . | . . . . Launcher 3 | . 3 . . Special . | . . . . Kinetic 79 | . 78 . 1 Thermal 10 | . 10 . . Explosive 3 | . 3 . . Electromagnetic . | . . . . Robot Hit Streak 10 | . 10 . . Robot Miss Streak 2 | . 2 . . Penetration Max . | . . . . Secondary Targets . | . . . . Shots Hit Robots 61 | . 61 . . Core Hits 27 | . 27 . . Critical Hits 1 | . 1 . . Critical Kills . | . . . . Critical Parts Destroyed 1 | . 1 . . Melee Attacks 5 | . . . 5 Impact . | . . . . Slashing 5 | . . . 5 Piercing . | . . . . Sneak Attacks . | . . . . Combat Hostiles . | . . . . Follow-up Attacks . | . . . . Damage Inflicted 964 | . 964 . . Guns 670 | . 670 . . Cannons . | . . . . Explosions 294 | . 294 . . Melee . | . . . . Ramming . | . . . . Kinetic 592 | . 592 . . Thermal 78 | . 78 . . Explosive 294 | . 294 . . Electromagnetic . | . . . . Impact . | . . . . Slashing . | . . . . Piercing . | . . . . Highest Corruption . | . . . . Average Corruption . | . . . . Corruption Purged . | . . . . Overload Shots . | . . . . Overflow Damage 35 | . 35 . . Projectiles . | . . . . Explosions 35 | . 35 . . Melee . | . . . . Knockbacks . | . . . . Impact . | . . . . Kinetic . | . . . . Secondary . | . . . . Self-Inflicted Damage . | . . . . Shots . | . . . . Rammed . | . . . . Targets Rammed . | . . . . Kicked . | . . . . Crushed . | . . . . Highest Temperature 138 | . 138 . . Average Temperature 44 | . 44 . . Received Heat Transfer 465 | . 186 . 279 Siege Activations . | . . . . Robots Corrupted . | . . . . Combat Hostiles . | . . . . Parts Fried . | . . . . Impact Corruptions . | . . . . Robots Melted . | . . . . Combat Hostiles . | . . . . Parts Melted . | . . . . Heat Transferred 185 | . 185 . . Parts Sabotaged . | . . . . Parts Stolen . | . . . . Parts Stripped . | . . . . Power Chain Reactions . | . . . . Missiles Intercepted . | . . . . Alert | -11 -10 -9 -9 ------- Run | Scr Mat Mat Sto Peak Influence 369 | . 222 69 369 Initial 39 | . . 39 28 Average 119 | . 112 43 184 Maximum Alert Level 1 | . 1 . 1 Low Security (%) 82 | . 88 100 48 Level 1 17 | . 11 . 51 Level 2 . | . . . . Level 3 . | . . . . Level 4 . | . . . . Level 5 . | . . . . High Security . | . . . . Max Security . | . . . . Squads Dispatched 6 | . 2 . 4 Investigation . | . . . . Extermination . | . . . . Reinforcement 4 | . 2 . 2 Assault 2 | . . . 2 Garrison . | . . . . Intercept . | . . . . Construction Impeded . | . . . . Haulers Reinforced . | . . . . Stealth | -11 -10 -9 -9 --------- Run | Scr Mat Mat Sto Distress Signals 3 | . 1 . 2 Communications Jammed . | . . . . Distress Signals . | . . . . Times Spotted 53 | . 21 6 26 Peak Tracking Total 12 | . 4 6 12 Tactical Retreats 4 | . . . 4 Traps | -11 -10 -9 -9 ------- Run | Scr Mat Mat Sto Traps Triggered 2 | . 2 . . Indirectly . | . . . . Trap Hack Attempts . | . . . . Triggered . | . . . . Disarmed . | . . . . Reprogrammed . | . . . . Reused . | . . . . Traps Extracted . | . . . . Installed . | . . . . Triggered . | . . . . Machines | -11 -10 -9 -9 ---------- Run | Scr Mat Mat Sto Machines Disabled 1 | . 1 . . Max in Single Turn 1 | . 1 . . Machines Sabotaged . | . . . . Garrisons Compromised . | . . . . Overloaded Fab Kills . | . . . . Fab Network Shutdowns . | . . . . Hacking | -11 -10 -9 -9 --------- Run | Scr Mat Mat Sto Machines Accessed 2 | . . . 2 Terminals 2 | . . . 2 Fabricators . | . . . . Repair Stations . | . . . . Recycling Units . | . . . . Scanalyzers . | . . . . Garrison Access . | . . . . Total Hacks 7 | . . . 7 Successful 1 | . . . 1 Failed 6 | . . . 6 Catastrophic . | . . . . Database Lockouts . | . . . . Manual 6 | . . . 6 Terminals 7 | . . . 7 Fabricators . | . . . . Repair Stations . | . . . . Recycling Units . | . . . . Scanalyzers . | . . . . Garrison Access . | . . . . Terminal Hacks 1 | . . . 1 Alert Level 1 | . . . 1 Fabricator Hacks . | . . . . Repair Station Hacks . | . . . . Recycling Unit Hacks . | . . . . Scanalyzer . | . . . . Garrison Access Hacks . | . . . . Unauthorized Hacks . | . . . . Terminals . | . . . . Fabricators . | . . . . Repair Stations . | . . . . Recycling Units . | . . . . Scanalyzers . | . . . . Garrison Access . | . . . . Data Cores Recovered . | . . . . Used . | . . . . Hacking Detections 3 | . . . 3 Full Trace Events . | . . . . Feedback Events . | . . . . Feedback Blocked . | . . . . Robot Schematics Acquired . | . . . . Robots Built . | . . . . Matter . | . . . . Time . | . . . . Total Robot Build Rating . | . . . . Part Schematics Acquired . | . . . . Parts Built . | . . . . Matter . | . . . . Time . | . . . . Total Part Build Rating . | . . . . Parts Repaired . | . . . . Time . | . . . . Parts Recycled . | . . . . Recycled Matter . | . . . . Retrieved Matter . | . . . . Retrieved Components . | . . . . Parts Scanalyzed . | . . . . Part Schematics Acquired . | . . . . Parts Damaged . | . . . . Bothacking | -11 -10 -9 -9 ------------ Run | Scr Mat Mat Sto Used RIF Installer . | . . . . Robots Hacked . | . . . . Non-combat . | . . . . Combat . | . . . . Robot Hacks Applied . | . . . . Relay Couplers Released . | . . . . Robots Rewired . | . . . . Allies Hacked . | . . . . Hacks Repelled . | . . . . Allies | -11 -10 -9 -9 -------- Run | Scr Mat Mat Sto Total Allies 2 | . . . 2 Largest Group 2 | . . . 2 Highest-Rated Group 62 | . . . 62 Highest-Rated Ally 31 | . . . 31 Total Orders . | . . . . Ally Attacks 29 | . . . 29 Total Damage 527 | . . . 527 Kills 9 | . . . 9 Allies Corrupted . | . . . . Allies Melted . | . . . . Intel | -11 -10 -9 -9 ------- Run | Scr Mat Mat Sto Robot Analysis Total . | . . . . Derelict Logs Recovered . | . . . . Drone Launches . | . . . . Drone Recoveries . | . . . . Exploration | -11 -10 -9 -9 ------------- Run | Scr Mat Mat Sto Turns Passed 1221 | . 850 130 241 Spaces Moved 1063 | 1 577 135 350 Core . | . . . . Treads . | . . . . Legs 304 | 1 303 . . Wheels 524 | . 274 135 115 Hover . | . . . . Flight 235 | . . . 235 Fastest Speed 37 | 120 90 90 37 Average Speed 86 | 120 105 90 54 Slowest Speed 120 | 120 120 90 90 Overloaded Moves . | . . . . Propulsion Burnouts . | . . . . Robots Hopped 21 | . . . 21 Cave-ins Triggered . | . . . . Exploration Rate (%) 44 | 1 90 13 73 Regions Visited 3 Branch Regions 1 Pre-discovered Areas . | . . . . Known Exits Taken 1 | . . 1 . Unknown Exits Taken 2 | 1 1 . . Scrap Searched . | . . . . Spaces Dug 1 | . . . 1 Terrain Destroyed 27 | . 26 . 1 Melee 1 | . . . 1 Projectile . | . . . . AOE 26 | . 26 . . Terrain Rammed . | . . . . Walls Destroyed . | . . . . Machines Disabled . | . . . . Actions | -11 -10 -9 -9 --------- Run | Scr Mat Mat Sto Total 1238 | . 727 143 368 Wait 85 | . 66 . 19 Move 1022 | . 576 134 312 Hop 17 | . . . 17 Pick Up 15 | . 9 4 2 Fast Attach 8 | . 5 1 2 Attach 11 | . 4 2 5 Detach 5 | . 4 1 . Swap 7 | . 6 . 1 Drop 15 | . 10 1 4 Fire 48 | . 47 . 1 Melee 5 | . . . 5 Ram . | . . . . Kick . | . . . . Crush . | . . . . Escape Stasis . | . . . . Rewire . | . . . . Trap . | . . . . Miscellaneous . | . . . . Route ------- -11/Scrapyard -10/Materials (discovered 3 exits: [*Mat x2] / [*Min]) -9/Materials -9/Storage History --------- Turn | Location | Event 1 | -11/Scrapyard | Discovered new exit (range 0) 1 | -11/Scrapyard | Entered Materials 357 | -10/Materials | Discovered new exit (range 4) 504 | -10/Materials | Discovered new exit (range 9) 597 | -10/Materials | Build established: Mutant 793 | -10/Materials | Discovered new exit (range 9) 851 | -10/Materials | Entered another Materials area 851 | -9/Materials | Evolved 2 slots: Utility x2 857 | -9/Materials | Discovered new exit (range 14) 980 | -9/Materials | Identified exit to Storage 981 | -9/Materials | Entered Storage 987 | -9/Storage | Met a pair of Derelict thieves 1116 | -9/Storage | Core integrity fell below 50% 1145 | -9/Storage | Lost 6 parts (1p2n1u2w) 1207 | -9/Storage | Core integrity fell below 20% 1222 | -9/Storage | Destroyed by Y-45 Defender with Beam Rifle Last Messages --------------- 01107_ Assault Rifle destroyed. 01109_ Wheel destroyed. 01113_ Dropped Lrg. Storage Unit. 01114_ Mining Claw destroyed. 01114_ Imp. Sensor Array destroyed. 01126_ Acquired 54 matter. 01127_ Acquired 52 matter. 01128_ M-13 Machinist destroyed. 01138_ Acquired Imp. Ion Engine. 01152_ Connecting with Terminal... >>Alert(Check) Current Alert Level: 1-E 01173_ Cesium-ion Thruster destroyed. 01191_ ALERT: Hostiles spotted, dispatching reinforcements to Terminal S002. 01191_ O-16 Technician sends out distress signal. 01191_ O-16 Technician: "IFF HANDSHAKE FAILED. SECURING TERMINAL." 01199_ ALERT: Hostiles spotted, dispatching reinforcements to Terminal S003. 01202_ Connecting with Door Terminal... 01215_ Acquired Mace. 01220_ Adv. Terrain Scanner destroyed. Map ----- +----------------------------------------------------+ | | | | | | | | | | | | | | | | | | | | | | | | | | | | | ??????????#???#########????###????????????????#??? | | ??????#??????? #???## ######?#???????#????? | | ??????????#??# #???# #???????????????? | | ???#?????#???# #?#?# #???????#???????? | | ??????#??????# ##### ""#?#?????????????? | | ??????#??##??# + o T"#???????????????? | | ??##?????#T### ### # ""#???????????????? | | ??#??????" ## #?# # #???????????????? | | ?????????# ## ????#g########???????????????? | | ?????????# ## ????#?# #?????#??????#??????#??? | | "##########+###+#########g#????????#????????#????? | | " gg@#??????????????????????? | | " ##/#######???#???#????????? | | "#T#######+##### " # #?#?#????????????? | | ?###??#? #??## T #a #?????#?#? ??????? | | ??????# T#?#T " [ # #????#?#????#????? | | ??????##"""#??## # #???#????????????? | | ???????? ???#?# + ##???#????? ?????? | | ??????#???? ??##" "## # Y ##???????????????? | | ????#??????????##"G"## # #?#??????????????? | | ???#????????????# " ## # #????????????????? | | ??#?????????????###### # l #???#????????? ? | | #???????????????#????# ##g#######????????????? # | | ???????????????????#?# ##??##????#?#??????? # | | ?????????#???????????# #############??????? # | | ??????????#???##?????# #?#????? # | | ??????#?#?????###????# #??????? # | | ?????????? ? ????????# #????"?? # | | ???#?#?? ???????????## #?"????# # | | ??????? ????? ??????## + ??"??# # | | ????????????? ?#?????# #???? ?# # | | ?????????????????????# ############# ##??????# # | | ???????????"??????#??# ##????????#?#+######### # | | ??????????????????##?#+#?#?????????# # # | | ???????????? ??????? ??????????# # # | | ???????????????????# #????????# """ """ # # | +----------------------------------------------------+ Best States ------------- Heat Dissipation 28 Energy Generation 12 Energy Capacity 265 Matter Stores 300 Matter Capacity 300 Sight Range 16 Robot Scan Range 13 Terrain Scan Range 20 Terrain Scan Density 60 Evasion (%) 62 Item Schematics ----------------- None Robot Schematics ------------------ None Fabricated ------------ Nothing Alien Tech Used ----------------- None Achievements -------------- None Challenges ------------ None Game ------ Seed CoolantLightPropulsion Manual? 0 Play Time 00:22:02 Cumulative 13.5 hours Start 2020.11.16 @ 11:02:41 End 2020.11.16 @ 11:23:56 Sessions 1 Manual Loads 0 Difficulty Rogue Special Mode Halloween2020/ForbiddenLore Game No. 15 Rogue 15 Adventurer 0 Explorer 0 Win Type - Total 0 Types 0/0/0/0/0/0/0/0/0 Lore% 22 Gallery% 28 Achievement% 22 Wizard Run 0 Options --------- ASCII 0 Keyboard 1 Movement Vi Keybinds 1 Fullscreen 2 Font 14/SmallcapsGlow Map View 84x54 Tactical HUD 1 Map Filters NONE Filters NONE Steam 1 RUN: f0bf0db0-5e6b-4e03-a4fc-d2a66ce79229